Workbook

Sheet Deckblatt
A4: Exceltool zur Dieselbedarfsermittlung
A5: im Wasserversorgungsunternehmen
C30: Wasserversorger:
C33: Projekt:
C34: Bearbeiter
C35: Stand:

Sheet Anleitung
A1: Anleitung Exceltool - Dieselbedarfsermittlung
A2: Grundlagen
A4: Grundlage bilden die Berechnungsformeln nach Heumer et al. (2024), dazu wurden
A5: folgende Gleichungen für die Dieselbedarfsermittlung genutzt:
A7: Berechnung über PElt:
A9: Berechnung über PP:
A11: Berechnung über PHyd:
A13: PSchätzung:
A15: Bedienungsgrundlagen
A17: Die angegebenen Daten dienen ausschließlich als Beispielrechnung und sollten nicht für eine genaue Dieselbedarfsermittlung genutzt werden.
A19: Sämtliche Formeln und Verknüpfungen im Tool können frei verwendet werden, der Blattschutz ist passwortfrei.
A21: Im Tool gibt es Eingabefelder, diese dienen der Dateneingabe:
A23: Zusätzlich existieren vorkonfektionierte Auswahlfelder:
A24: Die Dropdowntabellen der Auswahlfelde sind im Tabellenblatt "Hilfstabellen" ausgelistet.
A26: Arbeitsschritte für eine vollständige Dieselbedarfsermittlung
A27: 1. | B27: Datenerfassung der Herstellerangaben | G27: Herstellerangaben
A28: 2. | B28: Auswahl und Datenerfassung des Notstrombetriebs | G28: Notstrombetrieb
A29: 3. | B29: Dieselbedarfsermittlung Betriebsfahrzeuge | G29: Betriebsfahrzeuge
A30: 4. | B30: Dieselbedarfsermittlung Baumaschinen | G30: Baumaschinen
A31: 5. | B31: Ermittlung Hilfsstoffbedarf für Fahrzeuge und Baumaschinen | G31: Hilfsstoffbedarf
A32: 6. | B32: Vorgabe Dauer der Bemessung und Auswahl Tankvolumen | G32: Zusammenfassung

Sheet Zusammenfassung
A1: Bemessung der Dieselbevorratung
A2: Grundparameter
A3: Dauer der Treibstoffversorgung | G3: 3 | H3: d
A4: Dieselverbrauch
A5: Verbraucher | G5: l/d | H5: l/Dauer
A6: Notstromaggregate | G6: =Notstrombetrieb!R18 -> 1704.410437 | H6: =G6*$G$3 -> 5113.23131
A7: Betriebsfahrzeuge pauschal | G7: =Betriebsfahrzeuge!H17 -> 130 | H7: =G7*$G$3 -> 390
A8: Baumaschinen pauschal | G8: =Baumaschinen!H17 -> 190 | H8: 570
A9: Summe | H9: =SUM(H6:H8) -> 6073.23131
A10: Gewähltes Tankvolumen
A11: Gewähltes Tankvolumen | H11: 10000
A12: Verbleibendes Volumen für den Betrieb der Anlage | H12: =H11-H9 -> 3926.76869
A13: Wertung | D13: =IF(H12<0,"nicht ausreichend",(IF(H12<H11*0.2,"Betriebsreserve kleine 20%","ausreichend"))) -> ausreichend
A15: Hilfsstoffverbrauch
A16: Bezeichnung | D16: Art | G16: l/d | H16: l/Dauer
A17: Hilfsstoff 1 | D17: =Herstellerangaben!J3 -> Adblue | G17: =Hilfsstoffbedarf!C31 -> 62.36316445 | H17: =G17*$G$3 -> 187.0894933
A18: Hilfsstoff 2 | D18: =Herstellerangaben!L3 -> Schmieröl | G18: =Hilfsstoffbedarf!E31 -> 4.458691754 | H18: 13.37607526
A19: Hilfsstoff 3 | D19: =Herstellerangaben!N3 -> 0 | G19: =Hilfsstoffbedarf!G31 -> 0 | H19: 0
B21: Eingabefeld

Sheet Herstellerangaben
A1: Herstellerangaben der Notstromaggregate
A2: Nr. | B2: Hersteller | C2: Maschinenbezeichnung | D2: Nennleistung in kVA | E2: Vspez. in kg/kWh | F2: ρ in kg/l | G2: ηG in % | H2: cos φ | I2: Hilfsstoff 1 in % vom Dieselverbr. | K2: Hilfsstoff 2 in % vom Dieselverbr. | M2: Hilfsstoff 3 in % vom Dieselverbr.
I3: Art | J3: Adblue | K3: Art | L3: Schmieröl | M3: Art
A4: 1 | B4: Hersteller A | C4: ABC 1 | D4: 100 | E4: 0.22 | F4: 0.83 | G4: 91.6 | H4: 0.8 | I4: 4 | K4: 0.25
A5: 2 | B5: Hersteller A | C5: ABC 2 | D5: 80 | E5: 0.29 | F5: 0.83 | G5: 92.8 | H5: 0.8 | I5: 0 | K5: 0.3
A6: 3 | B6: Hersteller A | C6: ABC 3 | D6: 100 | E6: 0.29 | F6: 0.83 | G6: 91.6 | H6: 0.8 | I6: 4 | K6: 0.25
A7: 4 | B7: Hersteller A | C7: ABC 4 | D7: 50 | E7: 0.22 | F7: 0.83 | G7: 91.6 | H7: 0.8 | I7: 4 | K7: 0.25
A8: 5
A9: 6
A10: 7
A11: 8
A12: 9
A13: 10
A14: 11
A15: 12
A16: 13
A17: n
C19: Auswahlfeld
C21: Eingabefeld

Sheet Notstrombetrieb
A1: Treibstoffbedarf Notstrombetrieb
A2: Nr. | B2: Standort | C2: Einsatzgebiet | D2: Berechnungs- methode | E2: Notstrom- aggregat Nr. | F2: Vspez. in kg/kWh | G2: ρ in kg/l | H2: ηG in % | I2: cos φ | J2: PElt in kWh | K2: PHilf in kWh | L2: PP in kWh | M2: ηElt in % | N2: ηP in % | O2: hF in mWS | P2: Q in m³/h | Q2: VkW in l/h | R2: VkW in l/d
F3: Übernahme aus Tabellenblatt "Herstellerangaben"
A4: 1 | B4: A | C4: Wasserförderung | D4: PP | E4: 1 | F4: =IF($E4>0,VLOOKUP($E4,Herstellerangaben!$A$4:$H$17,5,FALSE)," ") -> 0.22 | G4: =IF($E4>0,VLOOKUP($E4,Herstellerangaben!$A$4:$H$17,6,FALSE)," ") -> 0.83 | H4: =IF($E4>0,VLOOKUP($E4,Herstellerangaben!$A$4:$H$17,7,FALSE)," ") -> 91.6 | I4: =IF($E4>0,VLOOKUP($E4,Herstellerangaben!$A$4:$H$17,8,FALSE)," ") -> 0.8 | K4: 2 | L4: 47.6 | M4: 90 | Q4: =IF(D4="PSchätzung",0.0016*O4*P4,IF(D4="PElt",(F4/(G4*H4/100))*(J4+K4)/I4,IF(D4="PP",(F4/(G4*H4/100))*(L4/(M4/100)+K4)/I4,IF(D4="PHyd",(F4/(G4*H4/100))*((P4*O4)/(367*(M4/100)*(N4/100))+K4)/I4," ")))) -> 19.85379655 | R4: =IF(Q4<>" ",Q4*24," ") -> 476.4911173
A5: 2 | B5: B | C5: Wasserförderung | D5: PElt | E5: 2 | F5: =IF($E5>0,VLOOKUP($E5,Herstellerangaben!$A$4:$H$17,5,FALSE)," ") -> 0.29 | G5: =IF($E5>0,VLOOKUP($E5,Herstellerangaben!$A$4:$H$17,6,FALSE)," ") -> 0.83 | H5: =IF($E5>0,VLOOKUP($E5,Herstellerangaben!$A$4:$H$17,7,FALSE)," ") -> 92.8 | I5: =IF($E5>0,VLOOKUP($E5,Herstellerangaben!$A$4:$H$17,8,FALSE)," ") -> 0.8 | J5: 33 | K5: 2 | Q5: =IF(D5="PSchätzung",0.0016*O5*P5,IF(D5="PElt",(F5/(G5*H5/100))*(J5+K5)/I5,IF(D5="PP",(F5/(G5*H5/100))*(L5/(M5/100)+K5)/I5,IF(D5="PHyd",(F5/(G5*H5/100))*((P5*O5)/(367*(M5/100)*(N5/100))+K5)/I5," ")))) -> 16.47213855 | R5: =IF(Q5<>" ",Q5*24," ") -> 395.3313253
A6: 3 | B6: C | C6: Wasserförderung | D6: PElt | E6: 3 | F6: =IF($E6>0,VLOOKUP($E6,Herstellerangaben!$A$4:$H$17,5,FALSE)," ") -> 0.29 | G6: =IF($E6>0,VLOOKUP($E6,Herstellerangaben!$A$4:$H$17,6,FALSE)," ") -> 0.83 | H6: =IF($E6>0,VLOOKUP($E6,Herstellerangaben!$A$4:$H$17,7,FALSE)," ") -> 91.6 | I6: =IF($E6>0,VLOOKUP($E6,Herstellerangaben!$A$4:$H$17,8,FALSE)," ") -> 0.8 | J6: 47 | K6: 3 | Q6: 23.83990109 | R6: 572.1576261
A7: 4 | B7: D | C7: Wassergewinnung | D7: PElt | E7: 4 | F7: =IF($E7>0,VLOOKUP($E7,Herstellerangaben!$A$4:$H$17,5,FALSE)," ") -> 0.22 | G7: =IF($E7>0,VLOOKUP($E7,Herstellerangaben!$A$4:$H$17,6,FALSE)," ") -> 0.83 | H7: =IF($E7>0,VLOOKUP($E7,Herstellerangaben!$A$4:$H$17,7,FALSE)," ") -> 91.6 | I7: =IF($E7>0,VLOOKUP($E7,Herstellerangaben!$A$4:$H$17,8,FALSE)," ") -> 0.8 | J7: 28 | K7: 2 | Q7: 10.85126532 | R7: 260.4303678
A8: 5 | F8: =IF($E8>0,VLOOKUP($E8,Herstellerangaben!$A$4:$H$17,5,FALSE)," ") ->  | G8: =IF($E8>0,VLOOKUP($E8,Herstellerangaben!$A$4:$H$17,6,FALSE)," ") ->  | H8: =IF($E8>0,VLOOKUP($E8,Herstellerangaben!$A$4:$H$17,7,FALSE)," ") ->  | I8: =IF($E8>0,VLOOKUP($E8,Herstellerangaben!$A$4:$H$17,8,FALSE)," ") -> 
A9: 6 | F9: =IF($E9>0,VLOOKUP($E9,Herstellerangaben!$A$4:$H$17,5,FALSE)," ") ->  | G9: =IF($E9>0,VLOOKUP($E9,Herstellerangaben!$A$4:$H$17,6,FALSE)," ") ->  | H9: =IF($E9>0,VLOOKUP($E9,Herstellerangaben!$A$4:$H$17,7,FALSE)," ") ->  | I9: =IF($E9>0,VLOOKUP($E9,Herstellerangaben!$A$4:$H$17,8,FALSE)," ") -> 
A10: 7 | F10: =IF($E10>0,VLOOKUP($E10,Herstellerangaben!$A$4:$H$17,5,FALSE)," ") ->  | G10: =IF($E10>0,VLOOKUP($E10,Herstellerangaben!$A$4:$H$17,6,FALSE)," ") ->  | H10: =IF($E10>0,VLOOKUP($E10,Herstellerangaben!$A$4:$H$17,7,FALSE)," ") ->  | I10: =IF($E10>0,VLOOKUP($E10,Herstellerangaben!$A$4:$H$17,8,FALSE)," ") -> 
A11: 8 | F11: =IF($E11>0,VLOOKUP($E11,Herstellerangaben!$A$4:$H$17,5,FALSE)," ") ->  | G11: =IF($E11>0,VLOOKUP($E11,Herstellerangaben!$A$4:$H$17,6,FALSE)," ") ->  | H11: =IF($E11>0,VLOOKUP($E11,Herstellerangaben!$A$4:$H$17,7,FALSE)," ") ->  | I11: =IF($E11>0,VLOOKUP($E11,Herstellerangaben!$A$4:$H$17,8,FALSE)," ") -> 
A12: 9 | F12: =IF($E12>0,VLOOKUP($E12,Herstellerangaben!$A$4:$H$17,5,FALSE)," ") ->  | G12: =IF($E12>0,VLOOKUP($E12,Herstellerangaben!$A$4:$H$17,6,FALSE)," ") ->  | H12: =IF($E12>0,VLOOKUP($E12,Herstellerangaben!$A$4:$H$17,7,FALSE)," ") ->  | I12: =IF($E12>0,VLOOKUP($E12,Herstellerangaben!$A$4:$H$17,8,FALSE)," ") -> 
A13: 10 | F13: =IF($E13>0,VLOOKUP($E13,Herstellerangaben!$A$4:$H$17,5,FALSE)," ") ->  | G13: =IF($E13>0,VLOOKUP($E13,Herstellerangaben!$A$4:$H$17,6,FALSE)," ") ->  | H13: =IF($E13>0,VLOOKUP($E13,Herstellerangaben!$A$4:$H$17,7,FALSE)," ") ->  | I13: =IF($E13>0,VLOOKUP($E13,Herstellerangaben!$A$4:$H$17,8,FALSE)," ") -> 
A14: 11 | F14: =IF($E14>0,VLOOKUP($E14,Herstellerangaben!$A$4:$H$17,5,FALSE)," ") ->  | G14: =IF($E14>0,VLOOKUP($E14,Herstellerangaben!$A$4:$H$17,6,FALSE)," ") ->  | H14: =IF($E14>0,VLOOKUP($E14,Herstellerangaben!$A$4:$H$17,7,FALSE)," ") ->  | I14: =IF($E14>0,VLOOKUP($E14,Herstellerangaben!$A$4:$H$17,8,FALSE)," ") -> 
A15: 12 | F15: =IF($E15>0,VLOOKUP($E15,Herstellerangaben!$A$4:$H$17,5,FALSE)," ") ->  | G15: =IF($E15>0,VLOOKUP($E15,Herstellerangaben!$A$4:$H$17,6,FALSE)," ") ->  | H15: =IF($E15>0,VLOOKUP($E15,Herstellerangaben!$A$4:$H$17,7,FALSE)," ") ->  | I15: =IF($E15>0,VLOOKUP($E15,Herstellerangaben!$A$4:$H$17,8,FALSE)," ") -> 
A16: 13 | F16: =IF($E16>0,VLOOKUP($E16,Herstellerangaben!$A$4:$H$17,5,FALSE)," ") ->  | G16: =IF($E16>0,VLOOKUP($E16,Herstellerangaben!$A$4:$H$17,6,FALSE)," ") ->  | H16: =IF($E16>0,VLOOKUP($E16,Herstellerangaben!$A$4:$H$17,7,FALSE)," ") ->  | I16: =IF($E16>0,VLOOKUP($E16,Herstellerangaben!$A$4:$H$17,8,FALSE)," ") -> 
A17: n | F17: =IF($E17>0,VLOOKUP($E17,Herstellerangaben!$A$4:$H$17,5,FALSE)," ") ->  | G17: =IF($E17>0,VLOOKUP($E17,Herstellerangaben!$A$4:$H$17,6,FALSE)," ") ->  | H17: =IF($E17>0,VLOOKUP($E17,Herstellerangaben!$A$4:$H$17,7,FALSE)," ") ->  | I17: =IF($E17>0,VLOOKUP($E17,Herstellerangaben!$A$4:$H$17,8,FALSE)," ") -> 
A18: Summe | R18: =SUM(R4:R17) -> 1704.410437
C20: Auswahlfeld
C22: Eingabefeld

Sheet Betriebsfahrzeuge
A1: Treibstoffbedarf Betriebsfahrzeuge
A2: Fahrzeug | B2: Strecke in km | C2: Verbrauch l/100 km | D2: Bemerkungen | H2: Bedarf in l/d
A3: A | B3: 500 | C3: 10 | D3: Betankung der NEA | H3: =B3*C3/100 -> 50
A4: B | B4: 400 | C4: 8 | D4: Betriebskontrolle | H4: =B4*C4/100 -> 32
A5: C | B5: 400 | C5: 8 | D5: Behebung von Betriebsstörungen | H5: 32
A6: D | B6: 200 | C6: 8 | D6: Sonstige Fahrten | H6: 16
A17: Summe | H17: =SUM(H3:H16) -> 130
B19: Eingabefeld

Sheet Baumaschinen
A1: Treibstoffbedarf Baumaschinen
A2: Fahrzeug | B2: Laufzeit in h | C2: Verbrauch l/h | D2: Bemerkungen | H2: Bedarf in l/d
A3: A | B3: 10 | C3: 15 | D3: Bagger | H3: =B3*C3 -> 150
A4: B | B4: 10 | C4: 4 | D4: Sonstige Baugeräte | H4: =B4*C4 -> 40
A17: Summe | H17: =SUM(H3:H16) -> 190
B19: Eingabefeld

Sheet Hilfsstoffbedarf
A1: Hilfsstoffbedarf Notstromaggregate
A2: Hilfsstoffbedarf Notstromaggregate (Übernahme aus TB "Herstellerangaben und TB "Notstrombetrieb")
A3: Notstromaggregat Nr. | B3: Dieselverbrauch in l/d | C3: Hilfsstoff 1 in l/d | E3: Hilfsstoff 2 in l/d | G3: Hilfsstoff 3 in l/d
C4: Art | D4: =Herstellerangaben!J3 -> Adblue | E4: Art | F4: =Herstellerangaben!L3 -> Schmieröl | G4: Art | H4: =Herstellerangaben!N3 -> 0
A5: =IF(Herstellerangaben!B4<>0,Herstellerangaben!A4," ") -> 1 | B5: =IF(A5=1,VLOOKUP(A5,Notstrombetrieb!$E$4:$R$17,14,FALSE)," ") -> 476.4911173 | C5: =IF($A5=1,(VLOOKUP($A5,Herstellerangaben!$A$4:$N$17,9,FALSE)*B5/100)," ") -> 19.05964469 | E5: =IF($A5=1,(VLOOKUP($A5,Herstellerangaben!$A$4:$N$17,11,FALSE)*B5/100)," ") -> 1.191227793 | G5: =IF($A5=1,(VLOOKUP($A5,Herstellerangaben!$A$4:$N$17,13,FALSE)*B5/100)," ") -> 0
A6: =IF(Herstellerangaben!B5<>0,Herstellerangaben!A5," ") -> 2 | B6: =IF(A6=2,VLOOKUP(A6,Notstrombetrieb!$E$4:$R$17,14,FALSE)," ") -> 395.3313253 | C6: =IF($A6=2,(VLOOKUP($A6,Herstellerangaben!$A$4:$N$17,9,FALSE)*B6/100)," ") -> 0 | E6: =IF($A6=2,(VLOOKUP($A6,Herstellerangaben!$A$4:$N$17,11,FALSE)*B6/100)," ") -> 1.185993976 | G6: =IF($A6=2,(VLOOKUP($A6,Herstellerangaben!$A$4:$N$17,13,FALSE)*B6/100)," ") -> 0
A7: =IF(Herstellerangaben!B6<>0,Herstellerangaben!A6," ") -> 3 | B7: =IF(A7=3,VLOOKUP(A7,Notstrombetrieb!$E$4:$R$17,14,FALSE)," ") -> 572.1576261 | C7: =IF($A7=3,(VLOOKUP($A7,Herstellerangaben!$A$4:$N$17,9,FALSE)*B7/100)," ") -> 22.88630505 | E7: =IF($A7=3,(VLOOKUP($A7,Herstellerangaben!$A$4:$N$17,11,FALSE)*B7/100)," ") -> 1.430394065 | G7: =IF($A7=3,(VLOOKUP($A7,Herstellerangaben!$A$4:$N$17,13,FALSE)*B7/100)," ") -> 0
A8: =IF(Herstellerangaben!B7<>0,Herstellerangaben!A7," ") -> 4 | B8: =IF(A8=4,VLOOKUP(A8,Notstrombetrieb!$E$4:$R$17,14,FALSE)," ") -> 260.4303678 | C8: =IF($A8=4,(VLOOKUP($A8,Herstellerangaben!$A$4:$N$17,9,FALSE)*B8/100)," ") -> 10.41721471 | E8: =IF($A8=4,(VLOOKUP($A8,Herstellerangaben!$A$4:$N$17,11,FALSE)*B8/100)," ") -> 0.6510759194 | G8: =IF($A8=4,(VLOOKUP($A8,Herstellerangaben!$A$4:$N$17,13,FALSE)*B8/100)," ") -> 0
A9: =IF(Herstellerangaben!B8<>0,Herstellerangaben!A8," ") ->  | B9: =IF(A9=5,VLOOKUP(A9,Notstrombetrieb!$E$4:$R$17,14,FALSE)," ") ->  | C9: =IF($A9=5,(VLOOKUP($A9,Herstellerangaben!$A$4:$N$17,9,FALSE)*B9/100)," ") ->  | E9: =IF($A9=5,(VLOOKUP($A9,Herstellerangaben!$A$4:$N$17,11,FALSE)*B9/100)," ") ->  | G9: =IF($A9=5,(VLOOKUP($A9,Herstellerangaben!$A$4:$N$17,13,FALSE)*B9/100)," ") -> 
A10: =IF(Herstellerangaben!B9<>0,Herstellerangaben!A9," ") ->  | B10: =IF(A10=6,VLOOKUP(A10,Notstrombetrieb!$E$4:$R$17,14,FALSE)," ") ->  | C10: =IF($A10=6,(VLOOKUP($A10,Herstellerangaben!$A$4:$N$17,9,FALSE)*B10/100)," ") ->  | E10: =IF($A10=6,(VLOOKUP($A10,Herstellerangaben!$A$4:$N$17,11,FALSE)*B10/100)," ") ->  | G10: =IF($A10=6,(VLOOKUP($A10,Herstellerangaben!$A$4:$N$17,13,FALSE)*B10/100)," ") -> 
A11: =IF(Herstellerangaben!B10<>0,Herstellerangaben!A10," ") ->  | B11: =IF(A11=7,VLOOKUP(A11,Notstrombetrieb!$E$4:$R$17,14,FALSE)," ") ->  | C11: =IF($A11=7,(VLOOKUP($A11,Herstellerangaben!$A$4:$N$17,9,FALSE)*B11/100)," ") ->  | E11: =IF($A11=7,(VLOOKUP($A11,Herstellerangaben!$A$4:$N$17,11,FALSE)*B11/100)," ") ->  | G11: =IF($A11=7,(VLOOKUP($A11,Herstellerangaben!$A$4:$N$17,13,FALSE)*B11/100)," ") -> 
A12: =IF(Herstellerangaben!B11<>0,Herstellerangaben!A11," ") ->  | B12: =IF(A12=8,VLOOKUP(A12,Notstrombetrieb!$E$4:$R$17,14,FALSE)," ") ->  | C12: =IF($A12=8,(VLOOKUP($A12,Herstellerangaben!$A$4:$N$17,9,FALSE)*B12/100)," ") ->  | E12: =IF($A12=8,(VLOOKUP($A12,Herstellerangaben!$A$4:$N$17,11,FALSE)*B12/100)," ") ->  | G12: =IF($A12=8,(VLOOKUP($A12,Herstellerangaben!$A$4:$N$17,13,FALSE)*B12/100)," ") -> 
A13: =IF(Herstellerangaben!B12<>0,Herstellerangaben!A12," ") ->  | B13: =IF(A13=9,VLOOKUP(A13,Notstrombetrieb!$E$4:$R$17,14,FALSE)," ") ->  | C13: =IF($A13=9,(VLOOKUP($A13,Herstellerangaben!$A$4:$N$17,9,FALSE)*B13/100)," ") ->  | E13: =IF($A13=9,(VLOOKUP($A13,Herstellerangaben!$A$4:$N$17,11,FALSE)*B13/100)," ") ->  | G13: =IF($A13=9,(VLOOKUP($A13,Herstellerangaben!$A$4:$N$17,13,FALSE)*B13/100)," ") -> 
A14: =IF(Herstellerangaben!B13<>0,Herstellerangaben!A13," ") ->  | B14: =IF(A14=10,VLOOKUP(A14,Notstrombetrieb!$E$4:$R$17,14,FALSE)," ") ->  | C14: =IF($A14=10,(VLOOKUP($A14,Herstellerangaben!$A$4:$N$17,9,FALSE)*B14/100)," ") ->  | E14: =IF($A14=10,(VLOOKUP($A14,Herstellerangaben!$A$4:$N$17,11,FALSE)*B14/100)," ") ->  | G14: =IF($A14=10,(VLOOKUP($A14,Herstellerangaben!$A$4:$N$17,13,FALSE)*B14/100)," ") -> 
A15: =IF(Herstellerangaben!B14<>0,Herstellerangaben!A14," ") ->  | B15: =IF(A15=11,VLOOKUP(A15,Notstrombetrieb!$E$4:$R$17,14,FALSE)," ") ->  | C15: =IF($A15=11,(VLOOKUP($A15,Herstellerangaben!$A$4:$N$17,9,FALSE)*B15/100)," ") ->  | E15: =IF($A15=11,(VLOOKUP($A15,Herstellerangaben!$A$4:$N$17,11,FALSE)*B15/100)," ") ->  | G15: =IF($A15=11,(VLOOKUP($A15,Herstellerangaben!$A$4:$N$17,13,FALSE)*B15/100)," ") -> 
A16: =IF(Herstellerangaben!B15<>0,Herstellerangaben!A15," ") ->  | B16: =IF(A16=12,VLOOKUP(A16,Notstrombetrieb!$E$4:$R$17,14,FALSE)," ") ->  | C16: =IF($A16=12,(VLOOKUP($A16,Herstellerangaben!$A$4:$N$17,9,FALSE)*B16/100)," ") ->  | E16: =IF($A16=122,(VLOOKUP($A16,Herstellerangaben!$A$4:$N$17,11,FALSE)*B16/100)," ") ->  | G16: =IF($A16=12,(VLOOKUP($A16,Herstellerangaben!$A$4:$N$17,13,FALSE)*B16/100)," ") -> 
A17: =IF(Herstellerangaben!B16<>0,Herstellerangaben!A16," ") ->  | B17: =IF(A17=13,VLOOKUP(A17,Notstrombetrieb!$E$4:$R$17,14,FALSE)," ") ->  | C17: =IF($A17=13,(VLOOKUP($A17,Herstellerangaben!$A$4:$N$17,9,FALSE)*B17/100)," ") ->  | E17: =IF($A17=13,(VLOOKUP($A17,Herstellerangaben!$A$4:$N$17,11,FALSE)*B17/100)," ") ->  | G17: =IF($A17=13,(VLOOKUP($A17,Herstellerangaben!$A$4:$N$17,13,FALSE)*B17/100)," ") -> 
A18: =IF(Herstellerangaben!B17<>0,Herstellerangaben!A17," ") ->  | B18: =IF(A18="n",VLOOKUP(A18,Notstrombetrieb!$E$4:$R$17,14,FALSE)," ") ->  | C18: =IF($A18="n",(VLOOKUP($A18,Herstellerangaben!$A$4:$N$17,9,FALSE)*B18/100)," ") ->  | E18: =IF($A18="n",(VLOOKUP($A18,Herstellerangaben!$A$4:$N$17,11,FALSE)*B18/100)," ") ->  | G18: =IF($A18="n",(VLOOKUP($A18,Herstellerangaben!$A$4:$N$17,13,FALSE)*B18/100)," ") -> 
A19: Summen Notstrom | B19: =SUM(B5:B18) -> 1704.410437 | C19: =SUM(C5:D18) -> 52.36316445 | E19: =SUM(E5:F18) -> 4.458691754 | G19: =SUM(G5:H18) -> 0
A21: Sonstiger Hilfsstoffbedarf
A22: Zweck | B22: Ermittlung | C22: Hilfsstoff 1 in l/d | E22: Hilfsstoff 2 in l/d | G22: Hilfsstoff 3 in l/d
C23: Art | D23: =D4 -> Adblue | E23: Art | F23: =F4 -> Schmieröl | G23: Art | H23: =H4 -> 0
A24: Betriebsfahrzeuge | B24: Schätzung | C24: 5
A25: Baumaschinen | B25: Schätzung | C25: 5
A30: Summen Sonstige | C30: =SUM(C24:D29) -> 10 | E30: =SUM(E24:F29) -> 0 | G30: =SUM(G24:H29) -> 0
A31: Summen Gesamt | C31: =C19+C30 -> 62.36316445 | E31: =E19+E30 -> 4.458691754 | G31: =G19+G30 -> 0
B33: Auswahlfeld
B35: Eingabefeld

Sheet Hilfstabellen
A1: Hilfstabellen Dropdown @ Notstrombetrieb
A2: Einsatzgebiete | B2: Wassergewinnung | C2: Wasseraufbereitung | D2: Wasserförderung | E2: Verwaltung | F2: Sonstige
A3: Wassergewinnung | B3: PElt | C3: PElt | D3: PSchätzung | E3: PElt | F3: PElt
A4: Wasseraufbereitung | D4: PElt
A5: Wasserförderung | D5: PP
A6: Verwaltung | D6: PHyd
A7: Sonstige
A9: Nummer Auswahl Notstrom | B9: Auswahl bereits getroffen ? | C9: dynamische Auswahlliste
A11: =IF(Herstellerangaben!E4>0,Herstellerangaben!A4," ") -> 1 | B11: =IF(COUNTIF(Notstrombetrieb!$E$4:$E$17,A11)=0,A11,"") ->  | C11: =IFERROR(SMALL($B$11:$B$23,ROW(A1)),"") -> 
A12: =IF(Herstellerangaben!E5>0,Herstellerangaben!A5," ") -> 2 | B12: =IF(COUNTIF(Notstrombetrieb!$E$4:$E$17,A12)=0,A12,"") -> 
A13: =IF(Herstellerangaben!E6>0,Herstellerangaben!A6," ") -> 3 | B13: =IF(COUNTIF(Notstrombetrieb!$E$4:$E$17,A13)=0,A13,"") -> 
A14: =IF(Herstellerangaben!E7>0,Herstellerangaben!A7," ") -> 4 | B14: =IF(COUNTIF(Notstrombetrieb!$E$4:$E$17,A14)=0,A14,"") -> 
A15: =IF(Herstellerangaben!E8>0,Herstellerangaben!A8," ") ->  | B15: =IF(COUNTIF(Notstrombetrieb!$E$4:$E$17,A15)=0,A15,"") -> 
A16: =IF(Herstellerangaben!E9>0,Herstellerangaben!A9," ") ->  | B16: =IF(COUNTIF(Notstrombetrieb!$E$4:$E$17,A16)=0,A16,"") -> 
A17: =IF(Herstellerangaben!E10>0,Herstellerangaben!A10," ") ->  | B17: =IF(COUNTIF(Notstrombetrieb!$E$4:$E$17,A17)=0,A17,"") -> 
A18: =IF(Herstellerangaben!E11>0,Herstellerangaben!A11," ") ->  | B18: =IF(COUNTIF(Notstrombetrieb!$E$4:$E$17,A18)=0,A18,"") -> 
A19: =IF(Herstellerangaben!E12>0,Herstellerangaben!A12," ") ->  | B19: =IF(COUNTIF(Notstrombetrieb!$E$4:$E$17,A19)=0,A19,"") ->  | C19: =IFERROR(SMALL($B$11:$B$23,ROW(#REF!)),"") -> 
A20: =IF(Herstellerangaben!E13>0,Herstellerangaben!A13," ") ->  | B20: =IF(COUNTIF(Notstrombetrieb!$E$4:$E$17,A20)=0,A20,"") ->  | C20: =IFERROR(SMALL($B$11:$B$23,ROW(A9)),"") -> 
A21: =IF(Herstellerangaben!E14>0,Herstellerangaben!A14," ") ->  | B21: =IF(COUNTIF(Notstrombetrieb!$E$4:$E$17,A21)=0,A21,"") ->  | C21: =IFERROR(SMALL($B$11:$B$23,ROW(A10)),"") -> 
A22: =IF(Herstellerangaben!E15>0,Herstellerangaben!A15," ") ->  | B22: =IF(COUNTIF(Notstrombetrieb!$E$4:$E$17,A22)=0,A22,"") ->  | C22: =IFERROR(SMALL($B$11:$B$23,ROW(A11)),"") -> 
A23: =IF(Herstellerangaben!E16>0,Herstellerangaben!A16," ") ->  | B23: =IF(COUNTIF(Notstrombetrieb!$E$4:$E$17,A23)=0,A23,"") ->  | C23: =IFERROR(SMALL($B$11:$B$23,ROW(A12)),"") -> 
A26: Hilfstabellen Dropdown @ Herstellerangaben
A27: Hilfsstoffe
A28: Adblue
A29: Schmieröl
A30: Kältemittel
A32: Hilfstabellen Dropdown @ Hilfsstoffbedarf
A33: Hilfsstoffbedarf | B33: Ermittlung
A34: Betriebsfahrzeuge | B34: Schätzung
A35: Baumaschinen | B35: Berechnung
A36: Sonstige | B36: Herstellerangabe
